[Event "57th Biel Festival MTO 2024"]
[White "Jain Kashish Manoj"]
[Black "Haugner,Jan"]
[Site "Biel"]
[Round "6.34"]
[Annotator "ChessBase"]
[Result "1-0"]
[Date "2024.07.20"]
[WhiteElo "2308"]
[BlackElo "2072"]
[PlyCount "87"]
[TimeControl "60"]

1. e4 {[%emt 0:0:37]} c5 {[%emt 0:0:3]} 2. Nf3 {[%emt 0:0:6]} d6 {[%emt 0:0:4]} 3. Bb5+ {[%emt 0:0:7]} Nd7 {[%emt 0:0:5]} 4. Ba4 {[%emt 0:0:6]} Ngf6 {[%emt 0:0:36]} 5. O-O {[%emt 0:0:16]} a6 {[%emt 0:0:39]} 6. c4 {[%emt 0:0:12]} g6 {[%emt 0:1:18]} 7. Nc3 {[%emt 0:2:28]} Bg7 {[%emt 0:0:15]} 8. d3 {[%emt 0:2:6]} O-O {[%emt 0:0:17]} 9. h3 {[%emt 0:3:35]} Nb6 {[%emt 0:3:54]} 10. Bc2 {[%emt 0:1:44]} e6 {[%emt 0:2:24]} 11. a4 {[%emt 0:4:50]} Qc7 {[%emt 0:9:12]} 12. Bf4 {[%emt 0:6:10]} Nbd7 {[%emt 0:9:41]} 13. a5 {[%emt 0:7:17]} Ne5 {[%emt 0:5:22]} 14. Nxe5 {[%emt 0:1:51]} dxe5 {[%emt 0:0:7]} 15. Be3 {[%emt 0:0:20]} Bd7 {[%emt 0:7:26]} 16. Qb1 {[%emt 0:18:24]} Rfb8 {[%emt 0:16:56]} 17. b4 {[%emt 0:1:30]} Bf8 {[%emt 0:0:40]} 18. b5 {[%emt 0:3:11]} Qd8 {[%emt 0:5:16]} 19. Qb2 {[%emt 0:2:17]} axb5 {[%emt 0:7:6]} 20. Nxb5 {[%emt 0:0:44]} Bxb5 {[%emt 0:5:35]} 21. Qxb5 {[%emt 0:1:4]} Qc7 {[%emt 0:2:26]} 22. Bd2 {[%emt 0:3:32]} Nh5 {[%emt 0:3:1]} 23. g3 {[%emt 0:0:52]} Nf6 {[%emt 0:2:48]} 24. Qb2 {[%emt 0:3:6]} Rd8 {[%emt 0:7:48]} 25. Bc3 {[%emt 0:0:57]} Bd6 {[%emt 0:0:48]} 26. Rfb1 {[%emt 0:1:1]} Ra7 {[%emt 0:1:11]} 27. Ra3 {[%emt 0:0:36]} Nd7 {[%emt 0:3:22]} 28. Rb3 {[%emt 0:5:13]} Rb8 {[%emt 0:0:48]} 29. Rb6 {[%emt 0:1:17]} Ra6 {[%emt 0:4:10]} 30. Rxb7 {[%emt 0:1:38]} Rxb7 {[%emt 0:0:12]} 31. Qxb7 {[%emt 0:0:6]} Ra7 {[%emt 0:0:28]} 32. Qxc7 {[%emt 0:4:1]} Bxc7 {[%emt 0:0:2]} 33. Ba4 {[%emt 0:0:11]} Nb8 {[%emt 0:1:42]} 34. Bb5 {[%emt 0:0:53]} Kf8 {[%emt 0:2:53]} 35. Ra1 {[%emt 0:1:33]} Ke7 {[%emt 0:1:21]} 36. Kg2 {[%emt 0:1:3]} Kd6 {[%emt 0:1:30]} 37. f4 {[%emt 0:0:48]} f6 {[%emt 0:3:22]} 38. fxe5+ {[%emt 0:3:2]} fxe5 {[%emt 0:0:2]} 39. Rf1 {[%emt 0:3:58]} Ke7 {[%emt 0:4:19]} 40. a6 {[%emt 0:1:28]} Ra8 {[%emt 0:0:40]} 41. Bd2 {[%emt 0:50:36]} Nc6 {[%emt 0:13:22]} 42. Bxc6 {[%emt 0:0:0]} Rxa6 {[%emt 0:0:6]} 43. Bg5+ {[%emt 0:0:0]} Kd6 {[%emt 0:0:25]} 44. Bb5 {[%emt 0:0:0]} 1-0

[Event "57th Biel Festival MTO 2024"]
[White "Frayna,Janelle Mae"]
[Black "Gloeckler,Christian"]
[Site "Biel"]
[Round "6.35"]
[Annotator "ChessBase"]
[Result "0-1"]
[Date "2024.07.20"]
[WhiteElo "2164"]
[BlackElo "2304"]
[PlyCount "54"]
[TimeControl "60"]

1. Nf3 {[%emt 0:0:23]} Nf6 {[%emt 0:0:9]} 2. c4 {[%emt 0:0:17]} c5 {[%emt 0:0:13]} 3. g3 {[%emt 0:0:24]} d5 {[%emt 0:0:15]} 4. cxd5 {[%emt 0:0:7]} Nxd5 {[%emt 0:0:10]} 5. Bg2 {[%emt 0:1:35]} Nc6 {[%emt 0:0:43]} 6. Nc3 {[%emt 0:1:22]} Nc7 {[%emt 0:0:15]} 7. O-O {[%emt 0:0:47]} e5 {[%emt 0:0:23]} 8. a3 {[%emt 0:0:15]} Rb8 {[%emt 0:0:10]} 9. d3 {[%emt 0:8:19]} Be7 {[%emt 0:1:36]} 10. Nd2 {[%emt 0:1:50]} O-O {[%emt 0:0:57]} 11. Bxc6 {[%emt 0:0:15]} bxc6 {[%emt 0:0:8]} 12. Nc4 {[%emt 0:0:17]} f6 {[%emt 0:1:57]} 13. Be3 {[%emt 0:10:13]} Bh3 {[%emt 0:1:29]} 14. Re1 {[%emt 0:0:18]} Ne6 {[%emt 0:4:29]} 15. Qa4 {[%emt 0:2:17]} Nd4 {[%emt 0:5:40]} 16. Rab1 {[%emt 0:8:5]} Qd7 {[%emt 0:9:2]} 17. Na5 {[%emt 0:5:26]} Be6 {[%emt 0:8:36]} 18. Nc4 {[%emt 0:21:6]} Rfd8 {[%emt 0:5:53]} 19. Rec1 {[%emt 0:3:0]} Bf8 {[%emt 0:8:22]} 20. Qa6 {[%emt 0:11:7]} Nxe2+ {[%emt 0:8:3]} 21. Nxe2 {[%emt 0:1:30]} Qxd3 {[%emt 0:0:10]} 22. Nc3 {[%emt 0:8:10]} Qxc4 {[%emt 0:2:32]} 23. Qxa7 {[%emt 0:1:12]} Bf5 {[%emt 0:12:58]} 24. Ra1 {[%emt 0:2:13]} Ra8 {[%emt 0:4:9]} 25. Qb7 {[%emt 0:5:2]} Qe6 {[%emt 0:1:57]} 26. a4 {[%emt 0:1:27]} Bg4 {[%emt 0:4:12]} 27. h4 {[%emt 0:2:28]} Bf3 {[%emt 0:0:0]} 0-1

[Event "57th Biel Festival MTO 2024"]
[White "Panda,Barnabas"]
[Black "Saravanan,V.."]
[Site "Biel"]
[Round "6.36"]
[Annotator "RC"]
[Result "1/2-1/2"]
[Date "2024.07.20"]
[WhiteElo "2074"]
[BlackElo "2266"]
[PlyCount "28"]
[TimeControl "60"]

1. d4 {[%emt 0:0:6]} Nf6 {[%emt 0:0:5]} 2. c4 {[%emt 0:0:21]} g6 {[%emt 0:0:5]} 3. g3 {[%emt 0:0:23]} Bg7 {[%emt 0:0:6]} 4. Bg2 {[%emt 0:0:10]} d5 {[%emt 0:2:30]} 5. cxd5 {[%emt 0:0:19]} Nxd5 {[%emt 0:0:5]} 6. Nc3 {[%emt 0:0:11]} Nb6 {[%emt 0:1:0]} 7. Nf3 {[%emt 0:6:48]} Nc6 {[%emt 0:0:6]} 8. e3 {[%emt 0:5:53]} O-O {[%emt 0:0:14]} 9. O-O {[%emt 0:3:3]} Re8 {[%emt 0:0:6]} 10. b3 {[%emt 0:7:16]} e5 {[%emt 0:2:47]} 11. dxe5 {[%emt 0:1:43]} Nxe5 {[%emt 0:0:19]} 12. Nxe5 {[%emt 0:6:29]} Bxe5 {[%emt 0:0:37]} 13. Bb2 {[%emt 0:0:21]} c6 {[%emt 0:7:28]} 14. Qc2 {[%emt 0:6:12]} f5 {[%emt 0:12:10]} 1/2-1/2